[Event "Romanian Championship Open 2025"]
[Site "Craiova"]
[Date "2025.02.20"]
[Round "6.13"]
[White "Toma, Iustin"]
[Black "Dobre, Claudiu-Cristian"]
[Result "1-0"]
[Annotator "ChessBase"]
[ECO "B11"]
[WhiteElo "2118"]
[BlackElo "2279"]
[PlyCount "83"]
[EventDate "2025.02.12"]
[EventType "swiss"]
[EventCountry "ROU"]
[SourceTitle "playchess.com"]
[Source "ChessBase"]
[SourceQuality "1"]
[TimeControl "40/5400+30:900+30"]

1. e4 {[%emt 0:00:02]} c6 {[%emt 0:00:37]} 2. Nc3 {[%emt 0:00:05]} d5 {[%emt 0:00:10]} 3. Nf3 {[%emt 0:00:04]} dxe4 {[%emt 0:00:05]} 4. Nxe4 {[%emt 0:00:06]} Nf6 {[%emt 0:00:04]} 5. Qe2 {[%emt 0:00:05]} Nxe4 {[%emt 0:00:05]} 6. Qxe4 {[%emt 0:00:04]} Qa5 {[%emt 0:00:05]} 7. Bc4 {[%emt 0:01:31]} Bf5 {[%emt 0:00:27]} 8. Qf4 {[%emt 0:00:22]} e6 {[%emt 0:00:26]} 9. c3 {[%emt 0:00:26]} Qd8 {[%emt 0:04:59]} 10. Qg3 {[%emt 0:07:32]} Nd7 {[%emt 0:16:06]} 11. d4 {[%emt 0:00:16]} Bg6 {[%emt 0:16:50]} 12. Ne5 {[%emt 0:07:10]} Nxe5 {[%emt 0:03:58]} 13. dxe5 {[%emt 0:00:08]} Qb6 {[%emt 0:12:28]} 14. O-O {[%emt 0:23:06]} Be7 {[%emt 0:04:16]} 15. h4 {[%emt 0:21:59]} O-O {[%emt 0:01:04]} 16. Be2 {[%emt 0:02:07]} h5 {[%emt 0:05:09]} 17. b3 {[%emt 0:08:17]} Rad8 {[%emt 0:03:00]} 18. Bg5 {[%emt 0:06:50]} Bxg5 {[%emt 0:03:50]} 19. Qxg5 {[%emt 0:00:12]} Qa5 {[%emt 0:05:21]} 20. Rae1 {[%emt 0:11:59]} Bd3 {[%emt 0:08:41]} 21. Bxd3 {[%emt 0:01:42]} Rxd3 {[%emt 0:00:05]} 22. Qxh5 {[%emt 0:00:13]} Qxc3 {[%emt 0:01:51]} 23. Rc1 {[%emt 0:03:50]} Qd4 {[%emt 0:02:08]} 24. Rc4 {[%emt 0:00:10]} Qd5 {[%emt 0:01:06]} 25. Rg4 {[%emt 0:04:05]} f5 {[%emt 0:00:25]} 26. Rg6 {[%emt 0:00:29]} Qxe5 {[%emt 0:05:35]} 27. Qg5 {[%emt 0:00:23]} Rd7 {[%emt 0:03:11]} 28. h5 {[%emt 0:00:40]} Kf7 {[%emt 0:01:46]} 29. f4 {[%emt 0:00:33]} Qd4+ {[%emt 0:00:11]} 30. Kh2 {[%emt 0:00:05]} Rh8 {[%emt 0:00:52]} 31. Re1 {[%emt 0:00:18]} Re7 {[%emt 0:00:31]} 32. Re5 {[%emt 0:00:34]} Rh7 {[%emt 0:00:36]} 33. a4 {[%emt 0:01:03]} Qd1 {[%emt 0:00:27]} 34. h6 {[%emt 0:00:22]} Rxh6+ {[%emt 0:00:11]} 35. Rxh6 {[%emt 0:00:09]} gxh6 {[%emt 0:00:05]} 36. Qxh6 {[%emt 0:00:20]} Qg4 {[%emt 0:00:29]} 37. Re3 {[%emt 0:00:34]} Qg6 {[%emt 0:00:45]} 38. Qh4 {[%emt 0:00:25]} Ke8 {[%emt 0:01:00]} 39. Qh8+ {[%emt 0:00:11]} Kf7 {[%emt 0:00:03]} 40. Rg3 {[%emt 0:00:00]} Qxg3+ {[%emt 0:00:00]} 41. Kxg3 {[%emt 0:00:18]} Rd7 {[%emt 0:03:33]} 42. Kh4 {[%emt 0:00:23]} 1-0

[Event "Romanian Championship Open 2025"]
[Site "Craiova"]
[Date "2025.02.20"]
[Round "6.14"]
[White "Negrean, Andrei"]
[Black "Corbu, George-Alexandru"]
[Result "1-0"]
[Annotator "ChessBase"]
[ECO "C54"]
[WhiteElo "2224"]
[BlackElo "2080"]
[PlyCount "85"]
[EventDate "2025.02.12"]
[EventType "swiss"]
[EventCountry "ROU"]
[SourceTitle "playchess.com"]
[Source "ChessBase"]
[SourceQuality "1"]
[TimeControl "40/5400+30:900+30"]

1. e4 {[%emt 0:00:04]} e5 {[%emt 0:00:23]} 2. Nf3 {[%emt 0:00:12]} Nc6 {[%emt 0:00:25]} 3. Bc4 {[%emt 0:01:03]} Bc5 {[%emt 0:01:37]} 4. c3 {[%emt 0:00:17]} Nf6 {[%emt 0:00:07]} 5. d4 {[%emt 0:00:16]} exd4 {[%emt 0:00:10]} 6. e5 {[%emt 0:00:09]} d5 {[%emt 0:00:19]} 7. Bb5 {[%emt 0:00:19]} Ne4 {[%emt 0:00:13]} 8. cxd4 {[%emt 0:00:15]} Bb6 {[%emt 0:02:14]} 9. Nc3 {[%emt 0:00:48]} O-O {[%emt 0:00:46]} 10. Be3 {[%emt 0:00:37]} Bf5 {[%emt 0:06:08]} 11. O-O {[%emt 0:10:55]} Bg6 {[%emt 0:14:24]} 12. Rc1 {[%emt 0:10:27]} Ne7 {[%emt 0:15:06]} 13. Nh4 {[%emt 0:19:00]} Nf5 {[%emt 0:02:56]} 14. Nxf5 {[%emt 0:03:58]} Bxf5 {[%emt 0:00:06]} 15. Ne2 {[%emt 0:07:50]} f6 {[%emt 0:22:10]} 16. f3 {[%emt 0:17:55]} Ng5 {[%emt 0:00:09]} 17. Qd2 {[%emt 0:03:00]} Nf7 {[%emt 0:08:07]} 18. f4 {[%emt 0:01:02]} Bc8 {[%emt 0:03:15]} 19. Bd3 {[%emt 0:03:51]} f5 {[%emt 0:00:33]} 20. b4 {[%emt 0:04:14]} c6 {[%emt 0:03:32]} 21. a4 {[%emt 0:05:17]} Bc7 {[%emt 0:05:19]} 22. Rc2 {[%emt 0:00:38]} Be6 {[%emt 0:02:20]} 23. Nc1 {[%emt 0:01:07]} a5 {[%emt 0:02:02]} 24. b5 {[%emt 0:01:44]} cxb5 {[%emt 0:00:33]} 25. Bxb5 {[%emt 0:00:11]} Qe7 {[%emt 0:01:54]} 26. Nb3 {[%emt 0:02:36]} b6 {[%emt 0:00:08]} 27. Qd3 {[%emt 0:01:12]} Nd8 {[%emt 0:01:25]} 28. Bc1 {[%emt 0:01:13]} Bb8 {[%emt 0:03:51]} 29. Nd2 {[%emt 0:00:17]} Rf7 {[%emt 0:00:10]} 30. Ba3 {[%emt 0:01:00]} Qb7 {[%emt 0:00:17]} 31. Rfc1 {[%emt 0:00:36]} Rc7 {[%emt 0:00:32]} 32. Nf1 {[%emt 0:00:43]} Rxc2 {[%emt 0:00:49]} 33. Qxc2 {[%emt 0:00:06]} Qf7 {[%emt 0:00:51]} 34. Bd3 {[%emt 0:02:32]} Ba7 {[%emt 0:01:16]} 35. Bb5 {[%emt 0:01:26]} Bb8 {[%emt 0:01:09]} 36. Qb1 {[%emt 0:00:35]} Ra7 {[%emt 0:00:39]} 37. Bd3 {[%emt 0:00:24]} Bc7 {[%emt 0:01:09]} 38. Ng3 {[%emt 0:00:25]} g6 {[%emt 0:00:01]} 39. Ne2 {[%emt 0:00:05]} Bd7 {[%emt 0:01:57]} 40. Nc3 {[%emt 0:00:00]} Bc6 {[%emt 0:00:00]} 41. Nb5 {[%emt 0:05:17]} Bxb5 {[%emt 0:05:58]} 42. Qxb5 {[%emt 0:00:15]} Ra8 {[%emt 0:03:49]} 43. Rxc7 {[%emt 0:00:55]} 1-0

[Event "Romanian Championship Open 2025"]
[Site "Craiova"]
[Date "2025.02.20"]
[Round "6.15"]
[White "Tudoroiu, Razvan-Catalin"]
[Black "Daianu, Cristian-Clement"]
[Result "1/2-1/2"]
[Annotator "ChessBase"]
[ECO "A45"]
[WhiteElo "2085"]
[BlackElo "2214"]
[PlyCount "57"]
[EventDate "2025.02.12"]
[EventType "swiss"]
[EventCountry "ROU"]
[SourceTitle "playchess.com"]
[Source "ChessBase"]
[SourceQuality "1"]
[TimeControl "40/5400+30:900+30"]

1. d4 {[%emt 0:00:01]} Nf6 {[%emt 0:03:39]} 2. Bf4 {[%emt 0:00:12]} g6 {[%emt 0:01:56]} 3. Nc3 {[%emt 0:00:08]} d5 {[%emt 0:00:20]} 4. Nb5 {[%emt 0:00:15]} Na6 {[%emt 0:02:36]} 5. Nf3 {[%emt 0:00:08]} Bg7 {[%emt 0:01:11]} 6. e3 {[%emt 0:01:49]} O-O {[%emt 0:10:54]} 7. h3 {[%emt 0:00:08]} Ne4 {[%emt 0:02:59]} 8. Bd3 {[%emt 0:02:21]} c6 {[%emt 0:26:39]} 9. Nc3 {[%emt 0:02:38]} Qa5 {[%emt 0:12:44]} 10. O-O {[%emt 0:01:22]} Bf5 {[%emt 0:06:51]} 11. Qe1 {[%emt 0:07:10]} Nxc3 {[%emt 0:15:00]} 12. Bxf5 {[%emt 0:01:59]} gxf5 {[%emt 0:00:03]} 13. bxc3 {[%emt 0:00:07]} c5 {[%emt 0:00:17]} 14. Be5 {[%emt 0:04:40]} f6 {[%emt 0:03:21]} 15. Bh2 {[%emt 0:01:27]} Rac8 {[%emt 0:00:09]} 16. Rb1 {[%emt 0:07:47]} b6 {[%emt 0:01:06]} 17. Qe2 {[%emt 0:00:20]} Nc7 {[%emt 0:00:39]} 18. c4 {[%emt 0:08:43]} Qxa2 {[%emt 0:02:43]} 19. Ra1 {[%emt 0:04:07]} Qxc4 {[%emt 0:00:10]} 20. Qxc4 {[%emt 0:00:03]} dxc4 {[%emt 0:00:06]} 21. Rxa7 {[%emt 0:00:10]} Nd5 {[%emt 0:00:27]} 22. Nh4 {[%emt 0:07:25]} cxd4 {[%emt 0:00:42]} 23. exd4 {[%emt 0:00:55]} e6 {[%emt 0:00:15]} 24. Re1 {[%emt 0:04:53]} Rf7 {[%emt 0:00:22]} 25. Ra2 {[%emt 0:03:21]} Rc6 {[%emt 0:00:28]} 26. Ra8+ {[%emt 0:01:34]} Rf8 {[%emt 0:04:13]} 27. Ra7 {[%emt 0:00:04]} b5 {[%emt 0:01:13]} 28. Rd7 {[%emt 0:01:47]} f4 {[%emt 0:00:28]} 29. Nf5 {[%emt 0:02:10]} 1/2-1/2

[Event "Romanian Championship Open 2025"]
[Site "Craiova"]
[Date "2025.02.20"]
[Round "6.17"]
[White "Dima, Ioan-Radu"]
[Black "Parligras, Mircea-Emilian"]
[Result "0-1"]
[Annotator "TA"]
[ECO "E60"]
[WhiteElo "2094"]
[BlackElo "2528"]
[PlyCount "66"]
[EventDate "2025.02.12"]
[EventType "swiss"]
[EventCountry "ROU"]
[SourceTitle "playchess.com"]
[Source "ChessBase"]
[SourceQuality "1"]
[TimeControl "40/5400+30:900+30"]

{[%evp 17,66,21,27,24,47,22,37,34,19,14,22,0,12,0,0,0,44,52,47,45,50,58,46,46,46,-41,70,52,61,65,58,67,61,63,53,53,45,60,113,123,130,134,108,55,69,-10,0,-35,-44,-432,-443]} 1. d4 {[%emt 0:00:04]} d6 {[%emt 0:00:07]} 2. Nf3 {[%emt 0:01:11]} Nf6 {[%emt 0:00:07]} 3. g3 {[%emt 0:00:54]} g6 {[%emt 0:00:17]} 4. Bg2 {[%emt 0:00:07]} Bg7 {[%emt 0:00:07]} 5. O-O {[%emt 0:00:09]} O-O {[%emt 0:00:12]} 6. c4 {[%emt 0:07:17]} Bf5 {[%emt 0:00:24]} 7. Nc3 {[%emt 0:00:30]} Ne4 {[%emt 0:00:06]} 8. Nh4 {[%emt 0:00:09]} Nxc3 {[%emt 0:00:21]} 9. bxc3 {[%emt 0:00:03]} Bc8 {[%emt 0:00:11]} 10. f4 {[%emt 0:00:31] E60: King's Indian: Unusual lines and Fianchetto Variation without Nc3.} Nd7 $146 {[%emt 0:00:25]} ({Predecessor:} 10... c5 11. f5 Nc6 12. Be3 Bd7 13. Rb1 Na5 14. Qd3 cxd4 15. cxd4 e6 16. fxg6 hxg6 17. Bxb7 Nxb7 18. Rxb7 {½-½ Ragger,M (2601)-Shevchenko,K (2673) Olympiad-45 Budapest 2024 (9.2)}) 11. f5 {[%emt 0:02:22]} e6 {[%emt 0:00:42]} 12. fxe6 {[%emt 0:08:42] White is slightly better.} fxe6 {[%emt 0:00:08]} 13. Rxf8+ {[%emt 0:01:01]} Qxf8 {[%emt 0:00:10]} 14. Qd3 {[%emt 0:11:23]} Qe7 {[%emt 0:09:41]} 15. Be3 {[%emt 0:07:38]} Rb8 {[%emt 0:01:40]} 16. Rf1 {[%emt 0:07:47]} Qe8 {[%emt 0:12:26]} (16... b6 $5) 17. c5 {[%emt 0:12:31]} dxc5 {[%emt 0:07:17][%csl Oe6] Black has weak pawns} 18. Bf4 {[%emt 0:00:32]} e5 {[%emt 0:01:33]} 19. Bd5+ {[%emt 0:06:22]} Kh8 {[%emt 0:00:06]} 20. Bg5 {[%emt 0:00:38] [#] Black must now prevent Bf7.} exd4 {[%emt 0:26:33]} 21. cxd4 {[%emt 0:04:07]} (21. Bf7 $14 Ne5 (21... Qe5 $2 22. Nxg6+ hxg6 23. Qxg6 $18) 22. Nxg6+ (22. Bxe8 Nxd3 23. exd3 Bh3 $11) 22... hxg6 23. Qe4 (23. Bxe8 $2 Nxd3 24. exd3 Bf5 $19) 23... Nf3+ (23... Qxf7 $2 24. Rxf7 Nxf7 25. Qe8+ Kh7 26. Qxf7 $18) 24. Qxf3 (24. Rxf3 $2 Qxe4 25. Rf4 Qb1+ 26. Kg2 Be5 $19)) 21... Bxd4+ {[%emt 0:04:41]} (21... cxd4 $2 22. Bf7 Ne5 (22... Qe5 23. Nxg6+ hxg6 24. Qxg6 $18) 23. Bxe8 $18) ({Black should play} 21... Nf8 $1 $15) 22. e3 $1 $14 {[%emt 0:12:58]} Bg7 {[%emt 0:00:13]} 23. Bf7 $1 $36 {[%emt 0:03:19][%mdl 2048] Black is under pressure.} Ne5 $1 {[%emt 0:01:04][%csl LRd3,LRf7]} 24. Nxg6+ $1 {[%emt 0:00:24]} hxg6 {[%emt 0:00:29]} 25. Qe4 {[%emt 0:00:01]} (25. Bxe8 $2 Nxd3 26. Bxg6 c4 27. Bxd3 cxd3 $19) 25... Nf3+ {[%emt 0:03:37]} 26. Qxf3 {[%emt 0:00:06][%cal Of3f4] White wants to mate with Qf4!.} Qe5 {[%emt 0:00:03]} 27. Bf4 {[%emt 0:03:00]} Qh5 {[%emt 0:06:51]} 28. Qxh5+ $16 {[%emt 0:02:13]} gxh5 {[%emt 0:00:05]} 29. Bxc7 {[%emt 0:00:04]} Ra8 {[%emt 0:00:03]} 30. Bxh5 {[%emt 0:04:36]} (30. Rc1 $16) 30... Be6 $14 {[%emt 0:02:52]} 31. Rc1 {[%emt 0:01:04]} (31. a4 $14) 31... c4 $11 {[%emt 0:04:02]} 32. Ba5 {[%emt 0:02:54]} Rc8 {[%emt 0:00:28][%mdl 1024] And now ...Rc5 would win. Black has compensation.} 33. a3 $2 {[%emt 0:00:37][%mdl 8192] [#]} ({Better is} 33. Bd1 $15) 33... Rc5 $1 {[%emt 0:00:10][%csl LRa5,LRh5] Weighted Error Value: White=0.36/Black=0.15 (very precise)   Loses game:     	White=1     	---        Mistake:       	White=3     	Black=2      Inaccurate:     	White=1     	Black=1      OK:         	White=7     	Black=14     Best:        	White=4     	Black=1      Strong:       	White=3     	Black=2} 0-1

[Event "Romanian Championship Open 2025"]
[Site "Craiova"]
[Date "2025.02.20"]
[Round "6.18"]
[White "Panc, Samuel"]
[Black "Bida, Mihai-Eugen"]
[Result "1/2-1/2"]
[Annotator "RC"]
[ECO "B31"]
[WhiteElo "2036"]
[BlackElo "2413"]
[PlyCount "88"]
[EventDate "2025.02.12"]
[EventType "swiss"]
[EventCountry "ROU"]
[SourceTitle "playchess.com"]
[Source "ChessBase"]
[SourceQuality "1"]
[TimeControl "40/5400+30:900+30"]

1. e4 {[%emt 0:00:02]} c5 {[%emt 0:00:06]} 2. Nf3 {[%emt 0:00:04]} Nc6 {[%emt 0:00:04]} 3. Bb5 {[%emt 0:01:20]} g6 {[%emt 0:00:35]} 4. Bxc6 {[%emt 0:00:07]} bxc6 {[%emt 0:00:13]} 5. O-O {[%emt 0:00:27]} Bg7 {[%emt 0:00:27]} 6. Re1 {[%emt 0:00:27]} Qc7 {[%emt 0:00:18]} 7. e5 {[%emt 0:02:01]} f6 {[%emt 0:01:57]} 8. d4 {[%emt 0:01:27]} cxd4 {[%emt 0:00:53]} 9. Bf4 {[%emt 0:00:43]} Qb6 {[%emt 0:04:37]} 10. Qxd4 {[%emt 0:06:39]} Qxd4 {[%emt 0:02:16]} 11. Nxd4 {[%emt 0:00:21]} fxe5 {[%emt 0:05:35]} 12. Bxe5 {[%emt 0:00:37]} Bxe5 {[%emt 0:00:34]} 13. Rxe5 {[%emt 0:00:05]} Nf6 {[%emt 0:04:02]} 14. c4 {[%emt 0:08:39]} Kf7 {[%emt 0:09:32]} 15. Nc3 {[%emt 0:19:44]} Bb7 {[%emt 0:04:53]} 16. Rae1 {[%emt 0:06:15]} Rhe8 {[%emt 0:00:23]} 17. f4 {[%emt 0:00:28]} Rac8 {[%emt 0:04:40]} 18. Nf3 {[%emt 0:15:10]} h6 {[%emt 0:09:24]} 19. R5e2 {[%emt 0:13:04]} d6 {[%emt 0:01:52]} 20. Ne4 {[%emt 0:07:13]} Nxe4 {[%emt 0:01:44]} 21. Rxe4 {[%emt 0:00:03]} c5 {[%emt 0:00:12]} 22. R4e3 {[%emt 0:00:01]} Bxf3 {[%emt 0:01:05]} 23. Rxf3 {[%emt 0:00:06]} Rb8 {[%emt 0:00:58]} 24. b3 {[%emt 0:01:29]} a5 {[%emt 0:01:52]} 25. a4 {[%emt 0:02:45]} e6 {[%emt 0:05:53]} 26. Rd3 {[%emt 0:01:57]} Rb6 {[%emt 0:00:43]} 27. Kf2 {[%emt 0:00:26]} Kf6 {[%emt 0:05:37]} 28. Kf3 {[%emt 0:02:36]} Reb8 {[%emt 0:08:00]} 29. Ree3 {[%emt 0:00:11]} g5 {[%emt 0:01:04]} 30. fxg5+ {[%emt 0:04:23]} hxg5 {[%emt 0:00:29]} 31. Kg3 {[%emt 0:03:34]} e5 {[%emt 0:04:29]} 32. h4 {[%emt 0:02:07]} gxh4+ {[%emt 0:02:14]} 33. Kxh4 {[%emt 0:00:03]} Ke6 {[%emt 0:02:12]} 34. Kg3 {[%emt 0:00:44]} R6b7 {[%emt 0:00:54]} 35. Kf2 {[%emt 0:00:36]} Rf7+ {[%emt 0:00:41]} 36. Ke2 {[%emt 0:00:56]} Rf4 {[%emt 0:02:37]} 37. Rh3 {[%emt 0:01:07]} Rd4 {[%emt 0:00:16]} 38. Rh6+ {[%emt 0:00:16]} Kd7 {[%emt 0:00:05]} 39. Rh7+ {[%emt 0:00:24]} Kc6 {[%emt 0:00:06]} 40. Rg3 {[%emt 0:00:00]} Rf8 {[%emt 0:00:00]} 41. Rgg7 {[%emt 0:01:55]} Re4+ {[%emt 0:05:48]} 42. Kd3 {[%emt 0:00:41]} Rd4+ {[%emt 0:00:11]} 43. Ke2 {[%emt 0:00:15]} Re4+ {[%emt 0:00:05]} 44. Kd3 {[%emt 0:00:04]} Rd4+ {[%emt 0:00:03]} 1/2-1/2

[Event "Romanian Championship Open 2025"]
[Site "Craiova"]
[Date "2025.02.20"]
[Round "6.19"]
[White "Tamas, Christian-Arrydan"]
[Black "Cosma, Ioan"]
[Result "1-0"]
[Annotator "ChessBase"]
[ECO "E27"]
[WhiteElo "2016"]
[BlackElo "2286"]
[PlyCount "67"]
[EventDate "2025.02.12"]
[EventType "swiss"]
[EventCountry "ROU"]
[SourceTitle "playchess.com"]
[Source "ChessBase"]
[SourceQuality "1"]
[TimeControl "40/5400+30:900+30"]

1. d4 {[%emt 0:00:02]} Nf6 {[%emt 0:00:19]} 2. c4 {[%emt 0:00:03]} e6 {[%emt 0:00:10]} 3. Nc3 {[%emt 0:00:03]} Bb4 {[%emt 0:00:11]} 4. f3 {[%emt 0:00:04]} O-O {[%emt 0:00:24]} 5. a3 {[%emt 0:00:04]} Bxc3+ {[%emt 0:00:14]} 6. bxc3 {[%emt 0:00:04]} Ne8 {[%emt 0:00:14]} 7. Nh3 {[%emt 0:16:03]} b6 {[%emt 0:00:26]} 8. e4 {[%emt 0:00:18]} Ba6 {[%emt 0:01:49]} 9. Bd3 {[%emt 0:00:22]} Nc6 {[%emt 0:01:20]} 10. O-O {[%emt 0:03:43]} Na5 {[%emt 0:00:43]} 11. Qe2 {[%emt 0:01:35]} Nb3 {[%emt 0:05:37]} 12. Rb1 {[%emt 0:24:56]} Nxc1 {[%emt 0:00:09]} 13. Rbxc1 {[%emt 0:00:02]} c5 {[%emt 0:02:53]} 14. f4 {[%emt 0:03:03]} d5 {[%emt 0:13:53]} 15. cxd5 {[%emt 0:01:57]} Bxd3 {[%emt 0:00:38]} 16. Qxd3 {[%emt 0:00:05]} exd5 {[%emt 0:01:02]} 17. e5 {[%emt 0:00:16]} f5 {[%emt 0:02:51]} 18. c4 {[%emt 0:06:10]} cxd4 {[%emt 0:06:45]} 19. Qxd4 {[%emt 0:21:19]} dxc4 {[%emt 0:03:15]} 20. Qxc4+ {[%emt 0:00:17]} Kh8 {[%emt 0:00:06]} 21. Ng5 {[%emt 0:02:04]} Qe7 {[%emt 0:01:32]} 22. Rfd1 {[%emt 0:00:35]} a5 {[%emt 0:10:20]} 23. Qc6 {[%emt 0:05:31]} Ra7 {[%emt 0:00:27]} 24. Qxb6 {[%emt 0:01:06]} h6 {[%emt 0:01:21]} 25. Ne6 {[%emt 0:01:08]} Rg8 {[%emt 0:02:57]} 26. Nd4 {[%emt 0:00:19]} Rb7 {[%emt 0:00:18]} 27. Nxf5 {[%emt 0:03:01]} Qf7 {[%emt 0:00:47]} 28. e6 {[%emt 0:00:30]} Qxf5 {[%emt 0:00:08]} 29. Qxb7 {[%emt 0:00:06]} Qxe6 {[%emt 0:00:24]} 30. Qf3 {[%emt 0:04:27]} Nf6 {[%emt 0:00:24]} 31. h3 {[%emt 0:00:27]} Rb8 {[%emt 0:00:45]} 32. Kh2 {[%emt 0:01:24]} a4 {[%emt 0:03:18]} 33. Rd4 {[%emt 0:01:42]} Rb3 {[%emt 0:00:45]} 34. Rc3 {[%emt 0:00:20]} 1-0

[Event "Romanian Championship Open 2025"]
[Site "Craiova"]
[Date "2025.02.20"]
[Round "6.20"]
[White "Manea, Alexandru"]
[Black "Petroff, Vlad"]
[Result "1-0"]
[Annotator "ChessBase"]
[ECO "B13"]
[WhiteElo "2272"]
[BlackElo "2112"]
[PlyCount "177"]
[EventDate "2025.02.12"]
[EventType "swiss"]
[EventCountry "ROU"]
[SourceTitle "playchess.com"]
[Source "ChessBase"]
[SourceQuality "1"]
[TimeControl "40/5400+30:900+30"]

1. e4 {[%emt 0:00:01]} c6 {[%emt 0:00:11]} 2. d4 {[%emt 0:00:07]} d5 {[%emt 0:00:10]} 3. exd5 {[%emt 0:00:04]} cxd5 {[%emt 0:00:07]} 4. Bd3 {[%emt 0:00:05]} Nc6 {[%emt 0:01:06]} 5. c3 {[%emt 0:01:27]} Qc7 {[%emt 0:00:56]} 6. Na3 {[%emt 0:00:05]} a6 {[%emt 0:01:22]} 7. Nc2 {[%emt 0:00:06]} e6 {[%emt 0:10:29]} 8. Nf3 {[%emt 0:05:45]} Bd6 {[%emt 0:01:09]} 9. O-O {[%emt 0:00:15]} Nge7 {[%emt 0:02:44]} 10. Re1 {[%emt 0:00:47]} h6 {[%emt 0:04:14]} 11. Qe2 {[%emt 0:02:52]} O-O {[%emt 0:05:06]} 12. Bd2 {[%emt 0:01:01]} Kh8 {[%emt 0:15:01]} 13. Ne5 {[%emt 0:07:10]} f6 {[%emt 0:09:47]} 14. f4 {[%emt 0:11:09]} fxe5 {[%emt 0:10:12]} 15. fxe5 {[%emt 0:00:47]} Nxe5 {[%emt 0:02:04]} 16. dxe5 {[%emt 0:00:02]} Bc5+ {[%emt 0:00:10]} 17. Be3 {[%emt 0:04:34]} Bxe3+ {[%emt 0:03:11]} 18. Qxe3 {[%emt 0:00:24]} Bd7 {[%emt 0:01:40]} 19. Nd4 {[%emt 0:00:17]} Qb6 {[%emt 0:04:17]} 20. Re2 {[%emt 0:05:22]} Be8 {[%emt 0:03:07]} 21. Nb3 {[%emt 0:01:41]} Qxe3+ {[%emt 0:02:45]} 22. Rxe3 {[%emt 0:00:40]} Bg6 {[%emt 0:02:30]} 23. Nc5 {[%emt 0:02:05]} Bxd3 {[%emt 0:00:41]} 24. Rxd3 {[%emt 0:00:08]} Rf5 {[%emt 0:02:18]} 25. Re1 {[%emt 0:02:39]} Nc6 {[%emt 0:02:22]} 26. Nxe6 {[%emt 0:05:04]} Nxe5 {[%emt 0:00:16]} 27. Rg3 {[%emt 0:09:28]} Re8 {[%emt 0:01:47]} 28. Nd4 {[%emt 0:00:06]} Rf7 {[%emt 0:00:50]} 29. Rge3 {[%emt 0:06:03]} Rfe7 {[%emt 0:00:10]} 30. Nf5 {[%emt 0:14:21]} Re6 {[%emt 0:00:02]} 31. Kf1 {[%emt 0:02:39]} Kh7 {[%emt 0:01:15]} 32. Nd4 {[%emt 0:10:22]} R6e7 {[%emt 0:00:12]} 33. Nf5 {[%emt 0:01:28]} Re6 {[%emt 0:00:05]} 34. R1e2 {[%emt 0:00:27]} Kg8 {[%emt 0:03:24]} 35. Nd4 {[%emt 0:01:56]} R6e7 {[%emt 0:00:12]} 36. Nf5 {[%emt 0:00:13]} Re6 {[%emt 0:00:03]} 37. h3 {[%emt 0:00:36]} Kh7 {[%emt 0:01:26]} 38. Nd4 {[%emt 0:00:19]} R6e7 {[%emt 0:00:05]} 39. Nf5 {[%emt 0:00:04]} Re6 {[%emt 0:00:04]} 40. a4 {[%emt 0:00:00]} Kg8 {[%emt 0:00:00]} 41. g4 {[%emt 0:10:16]} Kh7 {[%emt 0:03:54]} 42. b3 {[%emt 0:00:19]} g6 {[%emt 0:01:47]} 43. Nd4 {[%emt 0:00:54]} R6e7 {[%emt 0:00:05]} 44. Nf3 {[%emt 0:04:07]} Nc6 {[%emt 0:00:23]} 45. Rxe7+ {[%emt 0:00:02]} Rxe7 {[%emt 0:00:09]} 46. Rxe7+ {[%emt 0:00:01]} Nxe7 {[%emt 0:00:01]} 47. Ke2 {[%emt 0:00:09]} Kg7 {[%emt 0:01:42]} 48. Ke3 {[%emt 0:00:03]} Nc6 {[%emt 0:00:15]} 49. Nd4 {[%emt 0:00:02]} Ne7 {[%emt 0:03:40]} 50. Ne6+ {[%emt 0:00:13]} Kf6 {[%emt 0:00:48]} 51. Nc5 {[%emt 0:00:00]} b6 {[%emt 0:02:40]} 52. Nxa6 {[%emt 0:00:02]} Kg5 {[%emt 0:00:14]} 53. Kf3 {[%emt 0:00:28]} Kh4 {[%emt 0:00:16]} 54. Kg2 {[%emt 0:00:04]} h5 {[%emt 0:00:49]} 55. gxh5 {[%emt 0:00:11]} gxh5 {[%emt 0:00:02]} 56. Nc7 {[%emt 0:00:35]} Kg5 {[%emt 0:00:25]} 57. b4 {[%emt 0:00:37]} Kf4 {[%emt 0:01:11]} 58. a5 {[%emt 0:04:01]} bxa5 {[%emt 0:01:43]} 59. bxa5 {[%emt 0:00:00]} Nc6 {[%emt 0:00:10]} 60. a6 {[%emt 0:00:24]} Na7 {[%emt 0:00:57]} 61. Nxd5+ {[%emt 0:00:20]} Ke5 {[%emt 0:00:33]} 62. Nb4 {[%emt 0:01:04]} Kd6 {[%emt 0:00:54]} 63. Kg3 {[%emt 0:00:04]} Kc5 {[%emt 0:00:05]} 64. Kh4 {[%emt 0:00:04]} Kc4 {[%emt 0:00:04]} 65. Na2 {[%emt 0:00:51]} Kb3 {[%emt 0:00:07]} 66. Kxh5 {[%emt 0:00:05]} Kxa2 {[%emt 0:00:06]} 67. Kg6 {[%emt 0:00:01]} Kb3 {[%emt 0:18:30]} 68. h4 Kxc3 {[%emt 0:00:00]} 69. h5 {[%emt 0:00:01]} Kb4 {[%emt 0:00:00]} 70. h6 {[%emt 0:00:01]} Ka5 {[%emt 0:00:00]} 71. h7 {[%emt 0:00:01]} Kxa6 {[%emt 0:00:00]} 72. h8=Q {[%emt 0:00:02]} Nb5 {[%emt 0:00:00]} 73. Kf5 {[%emt 0:00:00]} Ka5 {[%emt 0:00:00]} 74. Ke4 {[%emt 0:00:01]} Kb4 {[%emt 0:03:30]} 75. Kd3 Kc5 {[%emt 0:00:00]} 76. Qh5+ {[%emt 0:00:06]} Kc6 {[%emt 0:00:00]} 77. Kc4 {[%emt 0:00:39]} Nd6+ {[%emt 0:00:00]} 78. Kb4 {[%emt 0:00:09]} Nb7 {[%emt 0:00:00]} 79. Qh1+ {[%emt 0:00:21]} Kb6 {[%emt 0:00:00]} 80. Qh6+ {[%emt 0:00:04]} Kc7 {[%emt 0:00:00]} 81. Kb5 {[%emt 0:00:22]} Nd6+ {[%emt 0:00:00]} 82. Kc5 {[%emt 0:00:09]} Nb7+ {[%emt 0:00:00]} 83. Kd5 {[%emt 0:00:07]} Nd8 {[%emt 0:00:00]} 84. Qd6+ {[%emt 0:00:35]} Kc8 {[%emt 0:00:00]} 85. Qe7 {[%emt 0:01:01]} Nb7 {[%emt 0:00:00]} 86. Kc6 {[%emt 0:00:15]} Na5+ {[%emt 0:00:00]} 87. Kb5 {[%emt 0:00:12]} Nb7 {[%emt 0:00:00]} 88. Kb6 {[%emt 0:00:08]} Nc5 {[%emt 0:00:00]} 89. Qc7# {[%emt 0:00:05]} 1-0